fUSD/lending_fUSD_20240930
["ID","MTS","AMOUNT","RATE_DAILY","PERIOD"]
[339504278,1727656241199,-203.72707885,0.00012473,2]
[339504279,1727656241211,-500.0,0.00012473,2]
[339504280,1727656241222,-508.28065642,0.00012473,2]
[339504281,1727656241233,-508.61407407,0.00012473,2]
[339504282,1727656241245,-500.0,0.00012473,2]
[339504283,1727656241258,-500.0,0.00012473,2]
[339504284,1727656241270,-151.61,0.00012482,2]
[339504285,1727656241282,-1065706.76212705,0.00012488,2]
[339504286,1727656242076,-192111.10045042,0.00012488,2]
[339504287,1727656242088,-65513.1,0.00012488,2]
[339504288,1727656242409,-702.36484713,0.00012488,2]
[339504289,1727656242420,-725.0,0.00012488,2]
[339504290,1727656242469,-642.2261901,0.00012488,2]
[339504291,1727656242480,-655.09444,0.00012488,2]
[339504292,1727656242492,-747.67843794,0.00012488,2]
[339504293,1727656242503,-1963.981935,0.00012488,2]
[339504294,1727656242516,-13540.39815887,0.00012488,2]
[339504300,1727656243210,-895.53284632,0.00012488,2]
[339504301,1727656243377,-6539.8333,0.00012488,2]
[339504302,1727656243490,-277.4181732,0.00012488,2]
[339504303,1727656243501,-515.44,0.00012488,2]
[339504304,1727656243514,-564.23863378,0.00012488,2]
[339504305,1727656243604,-6553.88556869,0.00012488,2]
[339504306,1727656243615,-457.41730751,0.00012488,2]
[339504307,1727656243626,-1965.0,0.00012488,2]
[339504310,1727656246342,-661.125,0.00012488,2]
[339504311,1727656290114,1200.0,8.972e-05,2]
[339504312,1727656324588,800.0,8.972e-05,2]
[339504313,1727656517221,364.24,9.334e-05,2]
[339504321,1727656949874,500.0,9.3e-05,2]
[339504322,1727656985145,500.0,9.34e-05,2]
[339504323,1727657037642,500.0,9.34e-05,2]
[339504326,1727657151028,500.0,9.91e-05,3]
[339504327,1727657190038,361.69,9.045e-05,2]
[339504339,1727657434095,-1050.0,0.0001,2]
[339504340,1727657434107,-500.0,0.00010068,2]
[339504341,1727657434118,-1200.0,0.00010342,2]
[339504342,1727657434130,-581.88002399,0.00010342,2]
[339504343,1727657434145,-218.11997601,0.00010342,2]
[339504344,1727657434158,-300.0,0.00010567,2]
[339504345,1727657434169,-1677.61010421,0.00010568,2]
[339504346,1727657434191,-425.01123584,0.00010568,2]
[339504347,1727657434205,-1440.43885463,0.00010568,2]
[339504348,1727657434220,-262.70659263,0.00010568,2]
[339504349,1727657434268,-1396.35356278,0.00010568,2]
[339504350,1727657434282,-706.11031433,0.00010568,2]
[339504351,1727657434296,-7703.13545526,0.00010568,2]
[339504352,1727657434326,-7148.74963332,0.00010568,2]
[339504353,1727657434339,-420.98804803,0.00010568,2]
[339504354,1727657434353,-1329.28402773,0.00010568,2]
[339504355,1727657434402,-387.17470319,0.00010568,2]
[339504356,1727657434416,-1002.43746805,0.00010568,2]
[339504357,1727657434428,-1454.26253195,0.00010588,2]
[339504362,1727657437441,-2610.32101696,0.00010588,2]
[339504363,1727657437452,-509.69128112,0.00010588,2]
[339504364,1727657437549,-5875.02516997,0.00010588,2]
[339504365,1727657437558,-733.22,0.00010626,2]
[339504366,1727657437570,-222.96,0.00010634,2]
[339504367,1727657437579,-150.0,0.00010658,2]
[339504368,1727657437588,-250.0,0.00010673,2]
[339504369,1727657437598,-310.59,0.00010842,2]
[339504370,1727657437607,-250.0,0.00010854,2]
[339504371,1727657437616,-878.20360388,0.00010855,2]
[339504372,1727657437661,-28.41639612,0.00010855,2]
[339504373,1727657437671,-786.19608538,0.0001086,2]
[339504374,1727657437680,-150.0,0.00010869,2]
[339504375,1727657437689,-499.99,0.00010869,2]
[339504376,1727657437699,-2282.29,0.00010869,2]
[339504377,1727657437708,-1000.0,0.00010869,2]
[339504378,1727657437717,-3764.54,0.0001087,2]
[339504379,1727657437727,-1187.31,0.0001087,2]
[339504380,1727657437736,-155.94,0.00010959,2]
[339504381,1727657437748,-250.0,0.00010959,2]
[339504382,1727657437757,-160.28,0.00010959,2]
[339504383,1727657437766,-206.59,0.00010959,2]
[339504384,1727657437775,-176.96000334,0.00011164,2]
[339504385,1727657437785,-150.0,0.00011219,2]
[339504386,1727657437794,-150.0,0.00011219,2]
[339504387,1727657437803,-150.0,0.00011219,2]
[339504388,1727657437812,-181.66506844,0.00011273,2]
[339504389,1727657437826,-3948.96257912,0.00011273,2]
[339504390,1727657437836,-361.69,0.00011309,2]
[339504391,1727657437845,-4251.23872556,0.00011397,2]
[339504392,1727657437854,-4320.87029486,0.00011397,2]
[339504393,1727657437862,-176.74,0.00011403,2]
[339504394,1727657437871,-1000.0,0.00011452,2]
[339504395,1727657437880,-150.01,0.00011502,2]
[339504396,1727657437889,-4323.2982,0.00011546,2]
[339504397,1727657437898,-150.0,0.00011635,2]
[339504398,1727657437907,-170.55,0.0001167,2]
[339504399,1727657437916,-428.53,0.00011678,2]
[339504400,1727657437925,-428.53,0.00011678,2]
[339504401,1727657437934,-1200.0,0.00011712,2]
[339504402,1727657437944,-800.0,0.00011712,2]
[339504403,1727657437954,-1000.0,0.00011778,2]
[339504404,1727657437965,-1000.0,0.00011778,2]
[339504405,1727657437973,-1000.0,0.00011778,2]
[339504406,1727657437983,-1000.0,0.00011778,2]
[339504407,1727657437992,-1000.0,0.00011778,2]
[339504408,1727657438002,-1000.0,0.00011778,2]
[339504409,1727657438012,-1000.0,0.00011778,2]
[339504410,1727657438021,-1000.0,0.00011778,2]
[339504411,1727657438031,-1000.0,0.00011778,2]
[339504412,1727657438040,-1000.0,0.00011778,2]
[339504413,1727657438049,-1000.0,0.00011778,2]
[339504414,1727657438058,-1000.0,0.00011778,2]
[339504415,1727657438068,-1000.0,0.00011778,2]
[339504416,1727657438077,-1000.0,0.00011778,2]
[339504417,1727657438086,-1000.0,0.00011778,2]
[339504418,1727657438095,-1000.0,0.00011778,2]
[339504419,1727657438104,-1000.0,0.00011778,2]
[339504420,1727657438114,-1000.0,0.00011778,2]
[339504421,1727657438124,-1000.0,0.00011778,2]
[339504422,1727657438133,-1000.0,0.00011778,2]
[339504423,1727657438143,-1000.0,0.00011778,2]
[339504424,1727657438152,-1000.0,0.00011778,2]
[339504425,1727657438161,-1000.0,0.00011778,2]
[339504426,1727657438170,-1000.0,0.00011778,2]
[339504427,1727657438179,-1000.0,0.00011778,2]
[339504428,1727657438189,-150.0,0.00011778,2]
[339504429,1727657438199,-483.53,0.00011778,2]
[339504430,1727657438209,-150.0,0.00011778,2]
[339504431,1727657438219,-150.0,0.00011778,2]
[339504432,1727657438230,-428.53,0.00011778,2]
[339504433,1727657438239,-150.0,0.00011778,2]
[339504434,1727657438250,-150.0,0.00011778,2]
[339504435,1727657438261,-428.53,0.00011778,2]
[339504436,1727657438271,-150.0,0.00011778,2]
[339504437,1727657438281,-150.0,0.00011778,2]
[339504438,1727657438290,-428.53,0.00011778,2]
[339504439,1727657438300,-150.0,0.00011778,2]
[339504440,1727657438309,-428.53,0.00011778,2]
[339504441,1727657438322,-150.0,0.00011778,2]
[339504442,1727657438331,-150.0,0.00011778,2]
[339504443,1727657438340,-428.53,0.00011778,2]
[339504444,1727657438350,-150.0,0.00011778,2]
[339504445,1727657438359,-150.0,0.00011778,2]
[339504446,1727657438368,-151.41,0.00011878,2]
[339504447,1727657438377,-150.0,0.00011912,2]
[339504448,1727657438386,-417.99808212,0.00011929,2]
[339504449,1727657438396,-753.56,0.00011945,2]
[339504450,1727657438405,-222.96,0.00011963,2]
[339504451,1727657438415,-213.38,0.00011981,2]
[339504452,1727657438423,-500.0,0.00012,2]
[339504453,1727657438433,-556.98856506,0.00012,2]
[339504454,1727657438455,-543.01143494,0.00012,2]
[339504455,1727657438464,-150.0,0.0001205,2]
[339504456,1727657438474,-150.0,0.00012052,2]
[339504457,1727657438483,-150.0,0.00012052,2]
[339504458,1727657438493,-698.9,0.00012055,2]
[339504459,1727657438502,-422.30975046,0.00012059,2]
[339504460,1727657438511,-150.0,0.00012082,2]
[339504461,1727657438520,-150.0,0.00012082,2]
[339504462,1727657438530,-150.0,0.00012082,2]
[339504463,1727657438539,-161.13,0.00012129,2]
[339504464,1727657438548,-220.276,0.00012216,2]
[339504465,1727657438557,-169.415,0.00012216,2]
[339504466,1727657438567,-625.0,0.00012236,2]
[339504467,1727657438576,-511.39463968,0.00012236,2]
[339504472,1727657439414,-784.60536032,0.00012236,2]
[339504473,1727657439423,-520.51073968,0.00012292,2]
[339504474,1727657439435,-334.40626032,0.00012292,2]
[339504475,1727657439444,-2654.37700504,0.000123,2]
[339504476,1727657439455,-574.0,0.000123,2]
[339504477,1727657439467,-1530.58502696,0.000123,2]
[339504478,1727657439477,-150.0,0.00012356,2]
[339504479,1727657439487,-11889.28594806,0.00012375,2]
[339504480,1727657439497,-500.0,0.00012388,2]
[339504481,1727657439506,-1413.138,0.00012388,2]
[339504482,1727657439516,-162.11399906,0.00012392,2]
[339504483,1727657439525,-207.95966001,0.00012392,2]
[339504484,1727657439534,-11009.01627529,0.00012392,2]
[339504485,1727657439544,-32415.697,0.00012392,2]
[339504486,1727657439553,-618.4164,0.00012392,2]
[339504487,1727657439563,-6375.6339,0.00012392,2]
[339504488,1727657439573,-500.0,0.00012392,2]
[339504489,1727657439583,-154.12749614,0.00012393,2]
[339504490,1727657439593,-154.12749614,0.00012393,2]
[339504491,1727657439603,-154.12749614,0.00012393,2]
[339504492,1727657439612,-154.12749614,0.00012393,2]
[339504493,1727657439622,-154.12749614,0.00012393,2]
[339504494,1727657439632,-154.12749614,0.00012393,2]
[339504495,1727657439642,-154.12749614,0.00012393,2]
[339504496,1727657439652,-154.12749614,0.00012393,2]
[339504497,1727657439661,-154.12749614,0.00012393,2]
[339504498,1727657439671,-154.12749614,0.00012393,2]
[339504499,1727657439680,-154.12749614,0.00012393,2]
[339504500,1727657439690,-154.12749614,0.00012393,2]
[339504501,1727657439700,-154.12749614,0.00012393,2]
[339504502,1727657439709,-154.62,0.00012393,2]
[339504503,1727657439719,-175.64973668,0.00012393,2]
[339504504,1727657439728,-175.64973668,0.00012393,2]
[339504505,1727657439738,-175.64973668,0.00012393,2]
[339504506,1727657439750,-175.64973668,0.00012393,2]
[339504507,1727657439760,-175.64973668,0.00012393,2]
[339504508,1727657439769,-175.64973668,0.00012393,2]
[339504509,1727657439779,-175.64973668,0.00012393,2]
[339504510,1727657439788,-175.64973668,0.00012393,2]
[339504511,1727657439800,-175.64973668,0.00012393,2]
[339504512,1727657439810,-175.64973668,0.00012393,2]
[339504513,1727657439822,-175.64973668,0.00012393,2]
[339504514,1727657439832,-175.64973668,0.00012393,2]
[339504515,1727657439842,-175.64973668,0.00012393,2]
[339504516,1727657439851,-175.64973668,0.00012393,2]
[339504517,1727657439860,-175.64973668,0.00012393,2]
[339504518,1727657439870,-175.64973668,0.00012393,2]
[339504519,1727657439879,-175.64973668,0.00012393,2]
[339504520,1727657439889,-175.64973668,0.00012393,2]
[339504521,1727657439898,-175.64973668,0.00012393,2]
[339504522,1727657439907,-176.14,0.00012393,2]
[339504523,1727657439917,-198.7885633,0.00012393,2]
[339504524,1727657439927,-198.7885633,0.00012393,2]
[339504525,1727657439936,-198.7885633,0.00012393,2]
[339504526,1727657439945,-198.7885633,0.00012393,2]
[339504527,1727657439955,-198.7885633,0.00012393,2]
[339504529,1727657439964,-198.7885633,0.00012393,2]
[339504531,1727657439973,-198.7885633,0.00012393,2]
[339504533,1727657439983,-198.7885633,0.00012393,2]
[339504535,1727657439993,-198.7885633,0.00012393,2]
[339504537,1727657440003,-198.7885633,0.00012393,2]
[339504539,1727657440013,-198.7885633,0.00012393,2]
[339504541,1727657440022,-198.7885633,0.00012393,2]
[339504544,1727657440032,-198.7885633,0.00012393,2]
[339504546,1727657440042,-198.7885633,0.00012393,2]
[339504548,1727657440052,-198.7885633,0.00012393,2]
[339504549,1727657440061,-198.7885633,0.00012393,2]
[339504552,1727657440074,-198.7885633,0.00012393,2]
[339504554,1727657440084,-198.7885633,0.00012393,2]
[339504556,1727657440094,-198.7885633,0.00012393,2]
[339504558,1727657440103,-199.28,0.00012393,2]
[339504560,1727657440113,-11009.01627524,0.00012393,2]
[339504562,1727657440122,-203.496895,0.00012393,2]
[339504564,1727657440131,-500.0,0.00012393,2]
[339504566,1727657440141,-2000.0,0.00012393,2]
[339504568,1727657440150,-500.0,0.00012393,2]
[339504570,1727657440159,-500.0,0.00012393,2]
[339504571,1727657440169,-200.0,0.00012393,2]
[339504573,1727657440179,-11009.01627524,0.00012394,2]
[339504575,1727657440190,-496.35827406,0.00012395,2]
[339504585,1727657440275,-10512.65800118,0.00012395,2]
[339504587,1727657440285,-11009.01627524,0.00012396,2]
[339504589,1727657440294,-11009.01627524,0.00012396,2]
[339504591,1727657440303,-11009.01627524,0.00012397,2]
[339504593,1727657440312,-11009.01627524,0.00012398,2]
[339504595,1727657440324,-11009.01627524,0.00012399,2]
[339504597,1727657440334,-273.35,0.000124,2]
[339504599,1727657440343,-302.32,0.000124,2]
[339504602,1727657440353,-1014.54,0.000124,2]
[339504604,1727657440364,-11009.01627524,0.000124,2]
[339504606,1727657440373,-1000.0,0.000124,2]
[339504608,1727657440383,-166.35,0.00012445,2]
[339504610,1727657440392,-150.0,0.00012466,2]
[339504612,1727657440402,-500.0,0.0001248,2]
[339504614,1727657440411,-151.62,0.00012482,2]
[339504616,1727657440420,-151.62,0.00012482,2]
[339504618,1727657440430,-151.62,0.00012483,2]
[339504620,1727657440439,-1758.0053775,0.00012487,2]
[339504621,1727657440448,-2215.940945,0.00012487,2]
[339504623,1727657440458,-218608.00730924,0.00012488,2]
[339504847,1727657442612,-638.03504534,0.00012487,2]
[339504849,1727657442621,-500.0,0.00012487,2]
[339504851,1727657442631,-422.00306701,0.00012487,2]
[339504853,1727657442640,-500.0,0.00012487,2]
[339504855,1727657442650,-500.0,0.00012487,2]
[339504857,1727657442659,-500.0,0.00012487,2]
[339504859,1727657442669,-275.02498495,0.00012487,2]
[339504861,1727657442678,-4072.93690244,0.00012488,2]
[339504864,1727657442695,-957.3,0.00012488,2]
[339504880,1727657445390,-658.07952203,0.00012488,2]
[339504881,1727657445500,-959.66047797,0.00012488,2]
[339504882,1727657445557,-1633.596035,0.00012488,2]
[339504883,1727657445568,-658.77499998,0.00012488,2]
[339504884,1727657558393,150.0,9.991e-05,2]
[339504885,1727657716891,500.0,1.248e-05,4]
[339504886,1727657737127,500.0,1.248e-05,3]
[339504887,1727657806242,355.28,9.198e-05,2]
[339504890,1727657923635,395.45186283,9.991e-05,3]
[339504892,1727658185683,500.0,9.991e-05,2]
[339504894,1727658518756,350.91,9.185e-05,2]
[339504902,1727658634235,-704.86,0.0001,2]
[339504903,1727658634247,-495.14000004,0.0001,2]
[339504904,1727658634256,-821.69678168,0.00010068,2]
[339504905,1727658634269,-178.30321832,0.00010068,2]
[339504906,1727658634280,-330.16876882,0.00010068,2]
[339504907,1727658634292,-169.83123118,0.00010068,2]
[339504908,1727658634302,-700.0,0.00010068,2]
[339504909,1727658634313,-42.55679521,0.00010068,2]
[339504910,1727658634327,-177.77002411,0.00010068,2]
[339504911,1727658634336,-552.26884293,0.00010742,2]
[339504912,1727658634358,-925.07724057,0.00010742,2]
[339504914,1727658634378,-966.43463374,0.00010742,2]
[339504916,1727658634389,-618.03494291,0.00010742,2]
[339504918,1727658634401,-590.16069176,0.00010742,2]
[339504920,1727658634412,-740.13608507,0.00010742,2]
[339504921,1727658634424,-269.36826602,0.00010742,2]
[339504922,1727658634434,-513.42,0.00010853,2]
[339504923,1727658634443,-250.0,0.00010944,2]
[339504924,1727658634453,-198.26,0.00010959,2]
[339504925,1727658634463,-153.7,0.00010959,2]
[339504926,1727658634473,-2057.0,0.00011111,2]
[339504927,1727658634482,-241.55,0.00011111,2]
[339504928,1727658634491,-3496.29,0.00011117,2]
[339504929,1727658634501,-250.0,0.00011122,2]
[339504930,1727658634511,-176.74,0.00011136,2]
[339504931,1727658634520,-167.22,0.0001116,2]
[339504932,1727658634531,-658.06,0.00011186,2]
[339504933,1727658634541,-150.0,0.00011219,2]
[339504934,1727658634550,-156.46084446,0.00011219,2]
[339504935,1727658634559,-150.53418371,0.00011219,2]
[339504936,1727658634569,-291.38012585,0.00011219,2]
[339504937,1727658634578,-150.0,0.00011219,2]
[339504938,1727658634587,-151.23512898,0.00011219,2]
[339504939,1727658634596,-150.31576066,0.00011219,2]
[339504940,1727658634605,-150.68840001,0.00011219,2]
[339504941,1727658634614,-150.7766013,0.00011219,2]
[339504942,1727658634624,-150.63301769,0.00011219,2]
[339504943,1727658634633,-170.55,0.00011431,2]
[339504944,1727658634642,-1000.0,0.00011438,2]
[339504945,1727658634651,-700.0,0.00011438,2]
[339504946,1727658634897,-350.91,0.00011449,2]
[339504947,1727658634907,-2068.7,0.00011507,2]
[339504948,1727658634916,-1000.0,0.00011537,2]
[339504949,1727658634925,-300.0,0.00011678,2]
[339504950,1727658634935,-716.5,0.00011678,2]
[339504951,1727658634944,-300.0,0.00011678,2]
[339504952,1727658634953,-856.88,0.00011678,2]
[339504953,1727658634963,-428.53,0.00011678,2]
[339504954,1727658634972,-428.53,0.00011678,2]
[339504955,1727658634981,-428.53,0.00011678,2]
[339504956,1727658634990,-428.53,0.00011678,2]
[339504957,1727658634999,-426.89,0.00011678,2]
[339504958,1727658635009,-193.82,0.00011681,2]
[339504959,1727658635018,-158.835739,0.0001175,2]
[339504960,1727658635028,-246.02,0.00012,2]
[339504961,1727658635037,-180.0,0.00012055,2]
[339504962,1727658635047,-698.9,0.00012055,2]
[339504963,1727658635056,-158.835739,0.00012125,2]
[339504964,1727658635065,-257.205,0.00012213,2]
[339504965,1727658635074,-169.415,0.00012213,2]
[339504966,1727658635084,-625.0,0.00012236,2]
[339504967,1727658635094,-511.395,0.00012236,2]
[339504968,1727658635104,-422.30975046,0.0001224,2]
[339504969,1727658635113,-161.13,0.0001228,2]
[339504970,1727658635122,-3091.8919,0.00012293,2]
[339504971,1727658635132,-500.0,0.00012295,2]
[339504972,1727658635141,-1002.1,0.000123,2]
[339504973,1727658635151,-15148.8,0.00012347,2]
[339504974,1727658635160,-267.84,0.00012356,14]
[339504975,1727658635170,-9484.57281202,0.00012374,2]
[339504976,1727658635180,-7500.0,0.00012391,2]
[339504977,1727658635189,-1000.0,0.00012392,2]
[339504978,1727658635199,-162.11399905,0.00012392,2]
[339504979,1727658635208,-207.95966001,0.00012392,2]
[339504980,1727658635217,-203.26784288,0.00012392,2]
[339504981,1727658635226,-3180.165,0.00012392,2]
[339504982,1727658635239,-156.92085964,0.00012393,2]
[339504983,1727658635249,-156.92085964,0.00012393,2]
[339504984,1727658635258,-156.92085964,0.00012393,2]
[339504985,1727658635268,-156.92085964,0.00012393,2]
[339504986,1727658635279,-156.92085964,0.00012393,2]
[339504987,1727658635288,-156.92085964,0.00012393,2]
[339504988,1727658635297,-156.92085964,0.00012393,2]
[339504989,1727658635307,-156.92085964,0.00012393,2]
[339504990,1727658635316,-156.92085964,0.00012393,2]
[339504991,1727658635325,-156.92085964,0.00012393,2]
[339504992,1727658635335,-157.42,0.00012393,2]
[339504993,1727658635344,-156.1276519,0.00012393,2]
[339504994,1727658635353,-156.1276519,0.00012393,2]
[339504995,1727658635363,-156.1276519,0.00012393,2]
[339504996,1727658635372,-156.1276519,0.00012393,2]
[339504997,1727658635381,-156.1276519,0.00012393,2]
[339504998,1727658635390,-156.1276519,0.00012393,2]
[339504999,1727658635399,-156.1276519,0.00012393,2]
[339505000,1727658635408,-156.1276519,0.00012393,2]
[339505001,1727658635418,-156.1276519,0.00012393,2]
[339505002,1727658635426,-156.1276519,0.00012393,2]
[339505003,1727658635434,-156.1276519,0.00012393,2]
[339505004,1727658635443,-156.1276519,0.00012393,2]
[339505005,1727658635453,-156.1276519,0.00012393,2]
[339505006,1727658635462,-156.1276519,0.00012393,2]
[339505007,1727658635471,-156.1276519,0.00012393,2]
[339505008,1727658635480,-156.1276519,0.00012393,2]
[339505009,1727658635489,-156.1276519,0.00012393,2]
[339505010,1727658635498,-156.62,0.00012393,2]
[339505011,1727658635507,-159.02593627,0.00012393,2]
[339505012,1727658635517,-159.02593627,0.00012393,2]
[339505013,1727658635526,-159.02593627,0.00012393,2]
[339505014,1727658635538,-159.02593627,0.00012393,2]
[339505015,1727658635547,-159.02593627,0.00012393,2]
[339505016,1727658635556,-159.02593627,0.00012393,2]
[339505017,1727658635565,-159.02593627,0.00012393,2]
[339505018,1727658635573,-159.02593627,0.00012393,2]
[339505019,1727658635582,-159.02593627,0.00012393,2]
[339505020,1727658635591,-159.02593627,0.00012393,2]
[339505021,1727658635600,-159.02593627,0.00012393,2]
[339505022,1727658635609,-159.02593627,0.00012393,2]
[339505023,1727658635618,-159.02593627,0.00012393,2]
[339505024,1727658635629,-159.02593627,0.00012393,2]
[339505025,1727658635638,-159.02593627,0.00012393,2]
[339505026,1727658635647,-159.02593627,0.00012393,2]
[339505027,1727658635656,-159.02593627,0.00012393,2]
[339505028,1727658635665,-159.02593627,0.00012393,2]
[339505029,1727658635674,-159.02593627,0.00012393,2]
[339505030,1727658635684,-159.52,0.00012393,2]
[339505031,1727658635693,-500.0,0.00012393,2]
[339505032,1727658635702,-2000.0,0.00012393,2]
[339505033,1727658635711,-500.0,0.00012393,2]
[339505034,1727658635721,-500.0,0.00012393,2]
[339505035,1727658635731,-200.0,0.00012393,2]
[339505036,1727658635740,-314.32,0.000124,2]
[339505037,1727658635749,-166.35,0.00012445,2]
[339505038,1727658635758,-150.0,0.00012466,2]
[339505039,1727658635767,-400.0,0.0001248,3]
[339505040,1727658635777,-500.0,0.0001248,2]
[339505041,1727658635789,-151.7,0.00012482,2]
[339505042,1727658635798,-151.7,0.00012482,2]
[339505043,1727658635807,-151.7,0.00012482,2]
[339505044,1727658635817,-24604.64943124,0.00012485,2]
[339505045,1727658635826,-13332.7674346,0.00012487,2]
[339505046,1727658635836,-2253.0732447,0.00012487,2]
[339505047,1727658635845,-2834.9839277,0.00012487,2]
[339505048,1727658635854,-200.0,0.00012488,2]
[339505049,1727658635863,-308.0,0.00012488,2]
[339505050,1727658635873,-200.0,0.00012488,2]
[339505051,1727658635882,-450.0,0.00012488,3]
[339505052,1727658635891,-445.53,0.00012488,4]
[339505053,1727658635900,-200.0,0.00012488,2]
[339505054,1727658635909,-446.62453174,0.00012491,2]
[339505055,1727658635918,-252.78055388,0.00012491,2]
[339505056,1727658635927,-11598.7338673,0.00012491,2]
[339505057,1727658635936,-1960.0429601,0.00012491,2]
[339505058,1727658635945,-2467.6166215,0.00012491,2]
[339505059,1727658635954,-107078.03387704,0.00012492,2]
[339505060,1727658635966,-530.14499983,0.00012492,2]
[339505061,1727658635977,-798.80351269,0.00012492,2]
[339505062,1727658637581,-287.55093867,0.00012492,2]
[339505065,1727658639780,-5324.18442096,0.00012492,2]
[339505096,1727658642772,-1210.60700231,0.00012247,2]
[339505097,1727658642827,-423.61133577,0.00012247,2]
[339505104,1727659145951,328.54,9.52e-05,2]
[339505107,1727659665506,328.56,9.006e-05,2]
[339505127,1727659832030,-295.5,0.0001,2]
[339505128,1727659832042,-754.5,0.0001,2]
[339505129,1727659832051,-900.0,0.00010068,2]
[339505130,1727659832060,-500.0,0.00010068,2]
[339505131,1727659832069,-500.0,0.00010426,2]
[339505132,1727659832079,-590.91,0.00010474,2]
[339505133,1727659832088,-178.05,0.00010621,2]
[339505134,1727659832098,-300.0,0.00010802,2]
[339505135,1727659832107,-10735.03975,0.00010803,2]
[339505136,1727659832118,-433.67064612,0.00010803,2]
[339505137,1727659832172,-4781.02268136,0.00010803,2]
[339505144,1727659838038,-600.0,0.00010068,2]
[339505145,1727659838048,-843.31692252,0.00010803,2]
[339505146,1727659838059,-589.39395503,0.00010848,2]
[339505147,1727659838154,-646.8411,0.00010848,2]
[339505148,1727659838271,-2948.6622803,0.00010848,2]
[339505153,1727659843147,-179.23266467,0.00010848,2]
[339505154,1727659843158,-241.55,0.00010884,2]
[339505155,1727659843167,-172.05422527,0.00010889,2]
[339505164,1727659845961,-77.94577473,0.00010889,2]
[339505165,1727659845971,-674.37429377,0.00010947,2]
[339505166,1727659846055,-359.22506627,0.00010947,2]
[339505167,1727659846173,-1280.81103182,0.00010947,2]
[339505168,1727659846185,-2004.1416721,0.00010947,2]
[339505169,1727659867864,14330.82408119,0.0001312,30]
[339505171,1727660327023,344.19,8.446e-05,2]
[339505172,1727660728142,250.0,9.434e-05,2]
[339505173,1727660786271,196.73,9.442e-05,2]
[339505174,1727660803563,187.82,9.493e-05,2]
[339505175,1727660869040,341.04,8.219e-05,2]
[339505185,1727660948712,200.0,9.485e-05,2]
[339505186,1727660953588,23890.0,9.484e-05,2]
[339505199,1727661032164,-900.0,0.00010068,2]
[339505200,1727661032173,-150.0,0.00010137,2]
[339505201,1727661032183,-1852.42,0.00010165,2]
[339505202,1727661032192,-519.85,0.00010165,2]
[339505203,1727661032202,-519.85,0.00010167,2]
[339505204,1727661032211,-853.42471854,0.00010167,2]
[339505205,1727661032222,-4966.18207672,0.00010167,2]
[339505206,1727661032231,-519.85,0.0001017,2]
[339505207,1727661032241,-519.85,0.00010173,2]
[339505208,1727661032250,-300.0,0.00010174,2]
[339505209,1727661032259,-519.85,0.00010175,2]
[339505210,1727661032269,-5127.04,0.00010175,2]
[339505211,1727661032278,-519.85,0.00010178,2]
[339505212,1727661032287,-499.99,0.00010178,2]
[339505213,1727661032302,-519.85,0.00010181,2]
[339505214,1727661032311,-519.85,0.00010183,2]
[339505215,1727661032320,-519.85,0.00010186,2]
[339505216,1727661032330,-519.85,0.00010189,2]
[339505217,1727661032339,-519.85,0.00010192,2]
[339505218,1727661032349,-519.85,0.00010194,2]
[339505219,1727661032358,-519.85,0.00010197,2]
[339505220,1727661032367,-519.85,0.000102,2]
[339505221,1727661032377,-519.85,0.00010202,2]
[339505222,1727661032386,-519.85,0.00010205,2]
[339505223,1727661032395,-150.0,0.00010205,2]
[339505224,1727661032405,-519.85,0.00010208,2]
[339505225,1727661032414,-519.85,0.0001021,2]